[Event "Early-Titled-Tuesday-Blitz-January-30-2024"]
[Site "Chess.com"]
[Date "2024.01.30"]
[Round "11"]
[White "Shuvalov"]
[Black "SahibSinghKnight"]
[Result "0-1"]
[WhiteElo "2465"]
[BlackElo "2649"]
[TimeControl "180+1"]
[EndTime "10:12:55 PST"]
[Termination "SahibSinghKnight won by resignation"]

1. d4 {[%clk 0:02:54]} 1... d5 {[%clk 0:02:56.7]} 2. c4 {[%clk 0:02:53.8]} 2...
e6 {[%clk 0:02:56]} 3. Nc3 {[%clk 0:02:53.9]} 3... c6 {[%clk 0:02:55.4]} 4. e4
{[%clk 0:02:52.5]} 4... dxe4 {[%clk 0:02:54.7]} 5. Nxe4 {[%clk 0:02:53.4]} 5...
Bb4+ {[%clk 0:02:54.5]} 6. Bd2 {[%clk 0:02:53.5]} 6... Qxd4 {[%clk 0:02:53.8]}
7. Bxb4 {[%clk 0:02:53.6]} 7... Qxe4+ {[%clk 0:02:54.2]} 8. Ne2 {[%clk
0:02:53.9]} 8... Na6 {[%clk 0:02:54.2]} 9. Bf8 {[%clk 0:02:53.3]} 9... Ne7
{[%clk 0:02:54.3]} 10. Bxg7 {[%clk 0:02:52.9]} 10... Nb4 {[%clk 0:02:54.3]} 11.
Bxh8 {[%clk 0:02:34]} 11... Nd3+ {[%clk 0:02:49.3]} 12. Kd2 {[%clk 0:02:34.1]}
12... Nxf2 {[%clk 0:02:49.1]} 13. Qe1 {[%clk 0:02:14.9]} 13... Nxh1 {[%clk
0:02:24.7]} 14. Nc3 {[%clk 0:01:57.3]} 14... Qf4+ {[%clk 0:02:21.7]} 15. Qe3
{[%clk 0:01:54.1]} 15... Qxh2 {[%clk 0:01:32.4]} 16. Be5 {[%clk 0:01:50.2]}
16... Qh4 {[%clk 0:01:28.7]} 17. Bd3 {[%clk 0:01:36.7]} 17... f6 {[%clk
0:00:54.5]} 18. g3 {[%clk 0:01:06.3]} 18... Qh2+ {[%clk 0:00:52.4]} 19. Qe2
{[%clk 0:01:06.5]} 19... Nf2 {[%clk 0:00:22.4]} 20. Bxf6 {[%clk 0:00:54.6]}
20... Qh6+ {[%clk 0:00:21.5]} 21. Kc2 {[%clk 0:00:53.1]} 21... Qxf6 {[%clk
0:00:21.3]} 22. Rf1 {[%clk 0:00:51.9]} 22... Nf5 {[%clk 0:00:20]} 23. Qxf2
{[%clk 0:00:47.2]} 23... Nd4+ {[%clk 0:00:18.2]} 24. Kb1 {[%clk 0:00:40.8]}
24... Qxf2 {[%clk 0:00:18.6]} 25. Rxf2 {[%clk 0:00:41.7]} 25... e5 {[%clk
0:00:19.1]} 26. Bxh7 {[%clk 0:00:41]} 26... Be6 {[%clk 0:00:19]} 27. Bg6+ {[%clk
0:00:41.1]} 27... Ke7 {[%clk 0:00:18.7]} 28. b3 {[%clk 0:00:40.5]} 28... Rg8
{[%clk 0:00:18.8]} 29. Bh5 {[%clk 0:00:31.1]} 29... Rxg3 {[%clk 0:00:18.6]} 30.
Ne4 {[%clk 0:00:30.6]} 30... Bf5 {[%clk 0:00:17.6]} 31. Rxf5 {[%clk 0:00:18.8]}
31... Rg1+ {[%clk 0:00:17.1]} 32. Kb2 {[%clk 0:00:19.4]} 32... Nxf5 {[%clk
0:00:17.3]} 33. Nc5 {[%clk 0:00:17.3]} 33... Ng3 {[%clk 0:00:14.3]} 34. Bg4
{[%clk 0:00:15]} 34... Ne4 {[%clk 0:00:11.4]} 35. Nxe4 {[%clk 0:00:14.1]} 35...
Rxg4 {[%clk 0:00:12]} 36. Nc5 {[%clk 0:00:14.2]} 36... b6 {[%clk 0:00:12]} 37.
Na6 {[%clk 0:00:13.4]} 37... e4 {[%clk 0:00:11.9]} 38. Nb4 {[%clk 0:00:12.9]}
38... Kd6 {[%clk 0:00:12.1]} 39. Kc3 {[%clk 0:00:12.4]} 39... Rg3+ {[%clk
0:00:09.3]} 40. Kd2 {[%clk 0:00:12]} 40... Kc5 {[%clk 0:00:09.6]} 41. Na6+
{[%clk 0:00:11.5]} 41... Kd4 {[%clk 0:00:09.5]} 42. Nb8 {[%clk 0:00:11]} 42...
e3+ {[%clk 0:00:09.4]} 43. Ke2 {[%clk 0:00:10.5]} 43... Ke4 {[%clk 0:00:09.6]}
44. Nxc6 {[%clk 0:00:09.8]} 44... Rg2+ {[%clk 0:00:10.5]} 45. Ke1 {[%clk
0:00:10]} 45... Rxa2 {[%clk 0:00:11.3]} 46. Nb4 {[%clk 0:00:09.6]} 46... Rb2
{[%clk 0:00:11]} 47. Nd5 {[%clk 0:00:09.3]} 47... Rxb3 {[%clk 0:00:10.7]} 48.
Ke2 {[%clk 0:00:09.3]} 48... Rb2+ {[%clk 0:00:11.1]} 49. Ke1 {[%clk 0:00:09.7]}
49... Rc2 {[%clk 0:00:11]} 50. Nf6+ {[%clk 0:00:08.2]} 50... Kf3 {[%clk
0:00:10.9]} 51. Kd1 {[%clk 0:00:08.2]} 51... Rxc4 {[%clk 0:00:09.4]} 0-1

[Event "Early-Titled-Tuesday-Blitz-January-30-2024"]
[Site "Chess.com"]
[Date "2024.01.30"]
[Round "11"]
[White "PepeCuenca"]
[Black "Sethu0025"]
[Result "0-1"]
[WhiteElo "2670"]
[BlackElo "2869"]
[TimeControl "180+1"]
[EndTime "10:12:57 PST"]
[Termination "Sethu0025 won on time"]

1. d4 {[%clk 0:03:00.9]} 1... d5 {[%clk 0:02:59.6]} 2. Bf4 {[%clk 0:02:59.3]}
2... Nf6 {[%clk 0:02:59.4]} 3. e3 {[%clk 0:02:59.7]} 3... e6 {[%clk 0:02:59.7]}
4. Nf3 {[%clk 0:02:59.5]} 4... c5 {[%clk 0:03:00.2]} 5. Nbd2 {[%clk 0:02:59.2]}
5... Nc6 {[%clk 0:03:00.4]} 6. c3 {[%clk 0:02:59]} 6... cxd4 {[%clk 0:03:00.7]}
7. exd4 {[%clk 0:02:58.7]} 7... Nh5 {[%clk 0:03:01.3]} 8. Be3 {[%clk 0:02:59.2]}
8... Bd6 {[%clk 0:03:01.3]} 9. Bd3 {[%clk 0:02:43.2]} 9... Nf4 {[%clk
0:03:00.5]} 10. Bxf4 {[%clk 0:02:43.8]} 10... Bxf4 {[%clk 0:03:01.3]} 11. O-O
{[%clk 0:02:44.5]} 11... O-O {[%clk 0:03:00.4]} 12. Re1 {[%clk 0:02:44.4]} 12...
Bd7 {[%clk 0:02:55.6]} 13. a4 {[%clk 0:02:43.1]} 13... Qc7 {[%clk 0:02:53.9]}
14. b4 {[%clk 0:02:14.4]} 14... Rac8 {[%clk 0:02:48.9]} 15. Nb3 {[%clk
0:02:05.2]} 15... b6 {[%clk 0:02:45.9]} 16. Ba6 {[%clk 0:02:01.8]} 16... Rcd8
{[%clk 0:02:44.9]} 17. Qd3 {[%clk 0:01:58.2]} 17... f6 {[%clk 0:02:39]} 18. a5
{[%clk 0:01:44.1]} 18... Nb8 {[%clk 0:02:35.9]} 19. axb6 {[%clk 0:01:24.8]}
19... axb6 {[%clk 0:02:36.8]} 20. Bb5 {[%clk 0:01:19.2]} 20... Bxb5 {[%clk
0:02:36.1]} 21. Qxb5 {[%clk 0:01:20.1]} 21... Qxc3 {[%clk 0:02:36.6]} 22. Rab1
{[%clk 0:01:19.7]} 22... Rd6 {[%clk 0:02:32.1]} 23. Red1 {[%clk 0:01:01.7]}
23... Qc4 {[%clk 0:02:28.1]} 24. Qa4 {[%clk 0:00:58.8]} 24... Nc6 {[%clk
0:02:26.8]} 25. Nbd2 {[%clk 0:00:54.3]} 25... Bxd2 {[%clk 0:02:18.1]} 26. Rxd2
{[%clk 0:00:53.7]} 26... e5 {[%clk 0:01:49.6]} 27. Rc2 {[%clk 0:00:48.2]} 27...
Qd3 {[%clk 0:01:49.1]} 28. Ne1 {[%clk 0:00:47.3]} 28... Qg6 {[%clk 0:01:44.1]}
29. Nf3 {[%clk 0:00:43.5]} 29... Nxd4 {[%clk 0:01:13.1]} 30. Nxd4 {[%clk
0:00:43.4]} 30... exd4 {[%clk 0:01:14]} 31. Rd1 {[%clk 0:00:41.5]} 31... Re8
{[%clk 0:01:08.4]} 32. Rcd2 {[%clk 0:00:35.9]} 32... Rde6 {[%clk 0:01:07]} 33.
Qa1 {[%clk 0:00:34.9]} 33... d3 {[%clk 0:01:05.2]} 34. h3 {[%clk 0:00:30.8]}
34... Re2 {[%clk 0:00:55.8]} 35. Rxd3 {[%clk 0:00:27.7]} 35... Qxd3 {[%clk
0:00:52.9]} 36. Rxd3 {[%clk 0:00:27.1]} 36... Re1+ {[%clk 0:00:53.5]} 37. Qxe1
{[%clk 0:00:27]} 37... Rxe1+ {[%clk 0:00:54.4]} 38. Kh2 {[%clk 0:00:27.9]} 38...
Rb1 {[%clk 0:00:53.3]} 39. Rxd5 {[%clk 0:00:26.3]} 39... Rxb4 {[%clk 0:00:53.4]}
40. Rd7 {[%clk 0:00:26.6]} 40... h5 {[%clk 0:00:52.8]} 41. g3 {[%clk 0:00:17.3]}
41... b5 {[%clk 0:00:46.4]} 42. h4 {[%clk 0:00:16.5]} 42... Rb1 {[%clk
0:00:44.7]} 43. Rb7 {[%clk 0:00:15.7]} 43... b4 {[%clk 0:00:44.9]} 44. Kg2
{[%clk 0:00:15.9]} 44... b3 {[%clk 0:00:45]} 45. Kh2 {[%clk 0:00:16.1]} 45...
Kh7 {[%clk 0:00:43.7]} 46. Kg2 {[%clk 0:00:16.1]} 46... Kg6 {[%clk 0:00:44]} 47.
Kh2 {[%clk 0:00:16.5]} 47... Kh6 {[%clk 0:00:36.7]} 48. Kg2 {[%clk 0:00:16.8]}
48... g5 {[%clk 0:00:37.1]} 49. Rb6 {[%clk 0:00:07.6]} 49... Kg6 {[%clk
0:00:36.3]} 50. hxg5 {[%clk 0:00:07.6]} 50... Kxg5 {[%clk 0:00:36.6]} 51. Rb5+
{[%clk 0:00:08.2]} 51... Kg6 {[%clk 0:00:35.6]} 52. Kf3 {[%clk 0:00:06.3]} 52...
b2 {[%clk 0:00:28.7]} 53. Kg2 {[%clk 0:00:06.5]} 53... f5 {[%clk 0:00:26.8]} 54.
f4 {[%clk 0:00:04.2]} 54... Kf6 {[%clk 0:00:26.4]} 55. Kf3 {[%clk 0:00:03.8]}
55... Rf1+ {[%clk 0:00:25.6]} 0-1

[Event "Early-Titled-Tuesday-Blitz-January-30-2024"]
[Site "Chess.com"]
[Date "2024.01.30"]
[Round "11"]
[White "Licancabur"]
[Black "HajiyevKanan"]
[Result "0-1"]
[WhiteElo "2424"]
[BlackElo "2569"]
[TimeControl "180+1"]
[EndTime "10:12:57 PST"]
[Termination "HajiyevKanan won on time"]

1. d4 {[%clk 0:03:00.9]} 1... d5 {[%clk 0:02:59.7]} 2. c4 {[%clk 0:02:59.8]}
2... c6 {[%clk 0:03:00.4]} 3. Nf3 {[%clk 0:02:59.1]} 3... Nf6 {[%clk 0:03:01]}
4. Nc3 {[%clk 0:02:58.9]} 4... a6 {[%clk 0:03:01.5]} 5. cxd5 {[%clk 0:02:54.1]}
5... cxd5 {[%clk 0:03:02.4]} 6. Bf4 {[%clk 0:02:52.9]} 6... Nc6 {[%clk
0:03:02.9]} 7. e3 {[%clk 0:02:52.5]} 7... Bg4 {[%clk 0:03:03.5]} 8. Rc1 {[%clk
0:02:45.8]} 8... e6 {[%clk 0:03:00.2]} 9. Bd3 {[%clk 0:02:41.5]} 9... Bd6 {[%clk
0:02:59.3]} 10. Bg5 {[%clk 0:02:35]} 10... O-O {[%clk 0:02:57.9]} 11. O-O {[%clk
0:02:28]} 11... Qc7 {[%clk 0:02:56.3]} 12. h3 {[%clk 0:02:18.4]} 12... Bh5
{[%clk 0:02:56.3]} 13. Bxf6 {[%clk 0:02:13.7]} 13... gxf6 {[%clk 0:02:57.2]} 14.
g4 {[%clk 0:02:09.6]} 14... Bg6 {[%clk 0:02:57.3]} 15. Nh4 {[%clk 0:02:06.6]}
15... Kg7 {[%clk 0:02:57.2]} 16. f4 {[%clk 0:02:04.2]} 16... Rac8 {[%clk
0:02:53.8]} 17. f5 {[%clk 0:01:58.2]} 17... Bg3 {[%clk 0:02:38.4]} 18. Ng2
{[%clk 0:01:44.2]} 18... Bh2+ {[%clk 0:02:34.8]} 19. Kh1 {[%clk 0:01:43.6]}
19... Qg3 {[%clk 0:02:35.7]} 20. Rf3 {[%clk 0:01:38.3]} 20... Qd6 {[%clk
0:02:31]} 21. fxg6 {[%clk 0:01:35]} 21... hxg6 {[%clk 0:02:31.5]} 22. Qe1 {[%clk
0:00:55.4]} 22... Rh8 {[%clk 0:02:30.6]} 23. Qf2 {[%clk 0:00:51.4]} 23... Qc7
{[%clk 0:01:59.6]} 24. Rf1 {[%clk 0:00:43.7]} 24... Rcf8 {[%clk 0:01:52.6]} 25.
a3 {[%clk 0:00:29.9]} 25... f5 {[%clk 0:01:48.5]} 26. gxf5 {[%clk 0:00:29]}
26... gxf5 {[%clk 0:01:49.2]} 27. Bxf5 {[%clk 0:00:25.1]} 27... exf5 {[%clk
0:01:48]} 28. Nxd5 {[%clk 0:00:25.3]} 28... Qd6 {[%clk 0:01:45]} 29. Ndf4 {[%clk
0:00:16.3]} 29... Bxf4 {[%clk 0:01:44.8]} 30. Nxf4 {[%clk 0:00:16.2]} 30... Kf6
{[%clk 0:01:40.4]} 31. Nd3 {[%clk 0:00:15.3]} 31... Ke7 {[%clk 0:01:40.5]} 32.
Nf4 {[%clk 0:00:14.5]} 32... Rfg8 {[%clk 0:01:40.3]} 33. Rg3 {[%clk 0:00:14.3]}
33... Kd8 {[%clk 0:01:36.5]} 34. Rfg1 {[%clk 0:00:14.6]} 34... Rxg3 {[%clk
0:01:31.5]} 35. Rxg3 {[%clk 0:00:13]} 35... Ne7 {[%clk 0:01:31.7]} 36. Qg2
{[%clk 0:00:12.5]} 36... Qc6 {[%clk 0:01:12.6]} 37. Qxc6 {[%clk 0:00:11.3]}
37... bxc6 {[%clk 0:01:13.5]} 38. Rg7 {[%clk 0:00:11.1]} 38... Ke8 {[%clk
0:01:13.1]} 39. Kg2 {[%clk 0:00:10.1]} 39... Kf8 {[%clk 0:01:13.7]} 40. Rg5
{[%clk 0:00:09.1]} 40... Rh6 {[%clk 0:01:14]} 41. Kg3 {[%clk 0:00:07.5]} 41...
Rd6 {[%clk 0:01:14.2]} 42. h4 {[%clk 0:00:07.4]} 42... Rd7 {[%clk 0:01:14.6]}
43. h5 {[%clk 0:00:07.5]} 43... Ng8 {[%clk 0:01:15.3]} 44. Kf3 {[%clk
0:00:06.6]} 44... Nh6 {[%clk 0:01:13.8]} 45. Nh3 {[%clk 0:00:05.9]} 45... Rb7
{[%clk 0:01:13.8]} 46. b4 {[%clk 0:00:05]} 46... a5 {[%clk 0:01:14.5]} 47. b5
{[%clk 0:00:05.1]} 47... cxb5 {[%clk 0:01:13.8]} 48. Nf4 {[%clk 0:00:05.2]}
48... b4 {[%clk 0:01:13.6]} 49. axb4 {[%clk 0:00:05.8]} 49... axb4 {[%clk
0:01:14.5]} 50. Rg2 {[%clk 0:00:06]} 50... Ng4 {[%clk 0:01:13.9]} 51. e4 {[%clk
0:00:05.2]} 51... b3 {[%clk 0:01:13.5]} 52. Rb2 {[%clk 0:00:04.4]} 52... Nh6
{[%clk 0:01:09.8]} 53. Nd5 {[%clk 0:00:03.1]} 53... Kg7 {[%clk 0:00:59.7]} 54.
Ne3 {[%clk 0:00:02.3]} 54... fxe4+ {[%clk 0:00:59]} 55. Kxe4 {[%clk 0:00:02.6]}
55... Re7+ {[%clk 0:00:59.7]} 56. Kd3 {[%clk 0:00:02.8]} 56... Rb7 {[%clk
0:00:59.8]} 57. Nc4 {[%clk 0:00:02.5]} 57... f5 {[%clk 0:00:59]} 58. Nd2 {[%clk
0:00:02.6]} 58... Kf6 {[%clk 0:00:52]} 59. Rxb3 {[%clk 0:00:03.2]} 59... Rd7
{[%clk 0:00:52]} 60. Rb5 {[%clk 0:00:03.1]} 60... Kg5 {[%clk 0:00:52.2]} 61.
Nf3+ {[%clk 0:00:03.4]} 61... Kf4 {[%clk 0:00:51.5]} 62. Ne5 {[%clk 0:00:03.4]}
62... Ra7 {[%clk 0:00:51.5]} 63. Rb6 {[%clk 0:00:03.4]} 63... Ra3+ {[%clk
0:00:51.4]} 64. Kc4 {[%clk 0:00:03.8]} 64... Kg5 {[%clk 0:00:42.6]} 0-1

[Event "Early-Titled-Tuesday-Blitz-January-30-2024"]
[Site "Chess.com"]
[Date "2024.01.30"]
[Round "11"]
[White "BardArtem"]
[Black "Alex_Sahakyan2006"]
[Result "1-0"]
[WhiteElo "2795"]
[BlackElo "2873"]
[TimeControl "180+1"]
[EndTime "10:12:58 PST"]
[Termination "BardArtem won on time"]

1. e4 {[%clk 0:03:00.9]} 1... e5 {[%clk 0:02:52]} 2. Nf3 {[%clk 0:03:00.2]} 2...
Nc6 {[%clk 0:02:52.1]} 3. Bc4 {[%clk 0:02:59.1]} 3... Nf6 {[%clk 0:02:52]} 4. d3
{[%clk 0:02:59]} 4... Bc5 {[%clk 0:02:47.7]} 5. Nc3 {[%clk 0:02:54.9]} 5... d6
{[%clk 0:02:45.6]} 6. Bg5 {[%clk 0:02:55]} 6... h6 {[%clk 0:02:44.9]} 7. Bxf6
{[%clk 0:02:55.2]} 7... Qxf6 {[%clk 0:02:44.9]} 8. Nd5 {[%clk 0:02:56.1]} 8...
Qd8 {[%clk 0:02:45.3]} 9. c3 {[%clk 0:02:56.7]} 9... a5 {[%clk 0:02:45.4]} 10.
d4 {[%clk 0:02:55.9]} 10... Ba7 {[%clk 0:02:43]} 11. dxe5 {[%clk 0:02:55.4]}
11... Nxe5 {[%clk 0:02:38.3]} 12. Nxe5 {[%clk 0:02:53.8]} 12... dxe5 {[%clk
0:02:39.2]} 13. Qh5 {[%clk 0:02:53.8]} 13... O-O {[%clk 0:02:33.7]} 14. Qxe5
{[%clk 0:02:52.3]} 14... Re8 {[%clk 0:02:27]} 15. Qf4 {[%clk 0:02:52.1]} 15...
Bb8 {[%clk 0:02:05.6]} 16. Ne3 {[%clk 0:02:18.6]} 16... Qe7 {[%clk 0:01:54.7]}
17. O-O {[%clk 0:02:07.2]} 17... b5 {[%clk 0:01:52.2]} 18. Bb3 {[%clk
0:01:53.7]} 18... c6 {[%clk 0:01:47.9]} 19. Qf3 {[%clk 0:01:52.6]} 19... a4
{[%clk 0:01:42.5]} 20. Bc2 {[%clk 0:01:51.6]} 20... a3 {[%clk 0:01:40]} 21. b4
{[%clk 0:01:44.6]} 21... Qe5 {[%clk 0:01:36.6]} 22. g3 {[%clk 0:01:32.8]} 22...
Qxc3 {[%clk 0:01:32.5]} 23. Bb3 {[%clk 0:01:32.6]} 23... Ra7 {[%clk 0:01:18]}
24. Rac1 {[%clk 0:01:24.1]} 24... Qxb4 {[%clk 0:01:17.8]} 25. Rxc6 {[%clk
0:01:21.1]} 25... Bh3 {[%clk 0:01:15.3]} 26. Rfc1 {[%clk 0:01:15.9]} 26... Be6
{[%clk 0:00:40.5]} 27. Bxe6 {[%clk 0:01:13.6]} 27... fxe6 {[%clk 0:00:41.4]} 28.
Rc8 {[%clk 0:01:10.5]} 28... Re7 {[%clk 0:00:41.5]} 29. Qh5 {[%clk 0:01:08.4]}
29... Kf8 {[%clk 0:00:22.2]} 30. Ng4 {[%clk 0:01:05.1]} 30... Qxe4 {[%clk
0:00:16.5]} 31. h3 {[%clk 0:00:38.9]} 31... Qf5 {[%clk 0:00:16.3]} 32. Qh4
{[%clk 0:00:32]} 32... Qg5 {[%clk 0:00:16.8]} 33. Qxg5 {[%clk 0:00:29.4]} 33...
hxg5 {[%clk 0:00:17.4]} 34. R8c5 {[%clk 0:00:30.3]} 34... b4 {[%clk 0:00:14.6]}
35. Rxg5 {[%clk 0:00:29.5]} 35... Rb7 {[%clk 0:00:13.1]} 36. Ra5 {[%clk
0:00:27.9]} 36... Bd6 {[%clk 0:00:09.1]} 37. Ra6 {[%clk 0:00:27.9]} 37... Rd8
{[%clk 0:00:05.8]} 38. Rcc6 {[%clk 0:00:27]} 38... Ke7 {[%clk 0:00:03.9]} 39.
Ne5 {[%clk 0:00:25]} 39... Bxe5 {[%clk 0:00:04]} 40. Rxe6+ {[%clk 0:00:25.4]}
40... Kf7 {[%clk 0:00:04.7]} 41. Rxe5 {[%clk 0:00:26.3]} 41... Rd2 {[%clk
0:00:05.4]} 42. Rf5+ {[%clk 0:00:13.3]} 42... Kg8 {[%clk 0:00:05.8]} 43. g4
{[%clk 0:00:06.3]} 43... Rxa2 {[%clk 0:00:06.1]} 44. g5 {[%clk 0:00:07]} 44...
Kh7 {[%clk 0:00:03.7]} 45. h4 {[%clk 0:00:04.3]} 45... Rc2 {[%clk 0:00:02.9]}
46. g6+ {[%clk 0:00:04.7]} 46... Kh6 {[%clk 0:00:02.4]} 47. Rf8 {[%clk
0:00:05.3]} 47... Kh5 {[%clk 0:00:02.3]} 48. Kg2 {[%clk 0:00:02.3]} 48... Kg4
{[%clk 0:00:01.4]} 49. Re6 {[%clk 0:00:01.8]} 1-0

[Event "Early-Titled-Tuesday-Blitz-January-30-2024"]
[Site "Chess.com"]
[Date "2024.01.30"]
[Round "11"]
[White "vesalhamedinia"]
[Black "Ducke13"]
[Result "0-1"]
[WhiteElo "2458"]
[BlackElo "2318"]
[TimeControl "180+1"]
[EndTime "10:13:00 PST"]
[Termination "Ducke13 won by resignation"]

1. d4 {[%clk 0:02:56.2]} 1... Nf6 {[%clk 0:03:00]} 2. c4 {[%clk 0:02:55.9]} 2...
g6 {[%clk 0:03:00]} 3. Nf3 {[%clk 0:02:56.2]} 3... Bg7 {[%clk 0:02:59.7]} 4. Nc3
{[%clk 0:02:56.8]} 4... d5 {[%clk 0:02:59]} 5. Bf4 {[%clk 0:02:56.5]} 5... O-O
{[%clk 0:02:55.3]} 6. e3 {[%clk 0:02:56.7]} 6... c5 {[%clk 0:02:51.9]} 7. dxc5
{[%clk 0:02:53.8]} 7... Qa5 {[%clk 0:02:43.5]} 8. Rc1 {[%clk 0:02:54.2]} 8...
Na6 {[%clk 0:02:41.6]} 9. cxd5 {[%clk 0:02:52.7]} 9... Nxc5 {[%clk 0:02:36.6]}
10. Bc4 {[%clk 0:02:52.6]} 10... Nfe4 {[%clk 0:02:34.7]} 11. Be5 {[%clk
0:02:47.5]} 11... Bxe5 {[%clk 0:02:01.6]} 12. Nxe5 {[%clk 0:02:48.4]} 12... Nxc3
{[%clk 0:02:01.3]} 13. bxc3 {[%clk 0:02:41.2]} 13... Bf5 {[%clk 0:01:46.1]} 14.
O-O {[%clk 0:02:38.7]} 14... Rac8 {[%clk 0:01:42.7]} 15. Qd4 {[%clk 0:02:32.6]}
15... Rfd8 {[%clk 0:01:14.7]} 16. f3 {[%clk 0:02:13.6]} 16... Rd6 {[%clk
0:01:01.3]} 17. e4 {[%clk 0:02:11.7]} 17... Bd7 {[%clk 0:01:01.3]} 18. Nxd7
{[%clk 0:02:02.7]} 18... Nxd7 {[%clk 0:01:02.2]} 19. Bb3 {[%clk 0:01:58.9]}
19... e5 {[%clk 0:00:59.3]} 20. dxe6 {[%clk 0:00:55.8]} 20... Rxd4 {[%clk
0:00:52.2]} 21. cxd4 {[%clk 0:00:52.9]} 21... Nb6 {[%clk 0:00:43]} 22. exf7+
{[%clk 0:00:50.6]} 22... Kg7 {[%clk 0:00:41]} 23. e5 {[%clk 0:00:31]} 23... Rxc1
{[%clk 0:00:36.3]} 24. Rxc1 {[%clk 0:00:30.6]} 24... Qd2 {[%clk 0:00:36.5]} 25.
Rd1 {[%clk 0:00:27.8]} 25... Qe3+ {[%clk 0:00:34]} 26. Kh1 {[%clk 0:00:28.2]}
26... a5 {[%clk 0:00:15.5]} 27. h3 {[%clk 0:00:24.2]} 27... a4 {[%clk
0:00:15.8]} 28. Be6 {[%clk 0:00:24.9]} 28... a3 {[%clk 0:00:11.1]} 29. Kh2
{[%clk 0:00:22.6]} 29... Na4 {[%clk 0:00:08.8]} 30. Bb3 {[%clk 0:00:18.9]} 30...
Nc3 {[%clk 0:00:08.2]} 31. Rf1 {[%clk 0:00:12.7]} 31... Qf4+ {[%clk 0:00:06.8]}
32. g3 {[%clk 0:00:12.2]} 32... Qxd4 {[%clk 0:00:07]} 33. f4 {[%clk 0:00:12.3]}
33... Qd2+ {[%clk 0:00:05.8]} 34. Kh1 {[%clk 0:00:11.8]} 34... Ne2 {[%clk
0:00:06.4]} 35. Kg2 {[%clk 0:00:06.5]} 35... Nxf4+ {[%clk 0:00:06.6]} 36. Kf3
{[%clk 0:00:06.8]} 36... Qe2+ {[%clk 0:00:07]} 37. Kxf4 {[%clk 0:00:05.8]} 37...
Qxf1+ {[%clk 0:00:07.7]} 38. Ke4 {[%clk 0:00:06]} 38... Qxh3 {[%clk 0:00:07.3]}
39. e6 {[%clk 0:00:05.1]} 39... Qf5+ {[%clk 0:00:07.5]} 40. Kd4 {[%clk
0:00:05.1]} 40... Kf8 {[%clk 0:00:07.9]} 41. g4 {[%clk 0:00:04.7]} 41... Qxg4+
{[%clk 0:00:07.9]} 42. Ke5 {[%clk 0:00:05.3]} 42... Ke7 {[%clk 0:00:07.6]} 43.
Bd5 {[%clk 0:00:03.6]} 43... Qf5+ {[%clk 0:00:07.8]} 44. Kd4 {[%clk 0:00:03.9]}
44... Kd6 {[%clk 0:00:07.9]} 45. Bb3 {[%clk 0:00:03.3]} 45... Qe5+ {[%clk
0:00:08]} 46. Kc4 {[%clk 0:00:03.6]} 46... Qxe6+ {[%clk 0:00:07.4]} 47. Kb5
{[%clk 0:00:04.2]} 47... Qf5+ {[%clk 0:00:07.4]} 48. Kb6 {[%clk 0:00:03.9]}
48... Qf3 {[%clk 0:00:07.3]} 49. Kb5 {[%clk 0:00:02.2]} 49... Ke7 {[%clk
0:00:07.7]} 50. Kb6 {[%clk 0:00:02.4]} 50... h5 {[%clk 0:00:07.8]} 51. Kc7
{[%clk 0:00:03]} 51... h4 {[%clk 0:00:08]} 52. f8=Q+ {[%clk 0:00:02.1]} 52...
Kxf8 {[%clk 0:00:08.1]} 0-1